[Event "57th Biel Festival MTO 2024"]
[White "Padmini,Rout"]
[Black "Jumabayev,Rinat"]
[Site "Biel"]
[Round "2.9"]
[Annotator "TA"]
[Result "0-1"]
[Date "2024.07.16"]
[WhiteElo "2348"]
[BlackElo "2575"]
[PlyCount "128"]
[TimeControl "60"]

{[%evp 34,128,-45,-47,-53,-61,-48,-57,-61,-81,-31,-56,-15,-29,-11,-12,-19,-79,-70,-100,-83,-102,-97,-98,-93,-98,-108,-114,-114,-121,-119,-112,-105,-105,-104,-108,-80,-133,-133,-190,-135,-155,-119,-143,-152,-158,-147,-140,-145,-147,-147,-233,-125,-152,-148,-195,-208,-218,-196,-322,-325,-277,-277,-328,-169,-154,-90,-130,-106,-707,-449,-517,-395,-872,-883,-1250,-1008,-2052,-1797,-1727,-1214,-12797,-12797,-10599,-6099,-29958,-29971,-29972,-29953,-29978,-29979,-29979,-29980,-29978,-29980,-29978,-29973]} 1. e4 {[%emt 0:0:3]} e5 {[%emt 0:3:19]} 2. Nf3 {[%emt 0:0:40]} Nc6 {[%emt 0:0:11]} 3. d4 {[%emt 0:1:36]} exd4 {[%emt 0:0:6]} 4. Bc4 {[%emt 0:0:18]} Bc5 {[%emt 0:6:39]} 5. O-O {[%emt 0:5:58]} d6 {[%emt 0:7:32]} 6. c3 {[%emt 0:0:58]} d3 {[%emt 0:14:18]} 7. b4 {[%emt 0:9:15]} Bb6 {[%emt 0:0:19]} 8. a4 {[%emt 0:0:15]} a6 {[%emt 0:8:45] C44: Ponziani Opening and Scotch Gambit.} 9. h3 {[%emt 0:11:59]} Nge7 {[%emt 0:12:42]} 10. Qxd3 $146 {[%emt 0:14:2]} ({Predecessor:} 10. Bxd3 Ng6 11. Na3 Nce5 12. Nc4 Nxc4 13. Bxc4 O-O 14. Qb3 h6 15. Ra2 Qf6 16. Be2 {½-½ Gaikwad,S (2003)-Teichmann,E (2312) Barcelona Sant Marti op-A 18th 2016 (1)} )Ng6 {[%emt 0:2:21]} 11. Bb3 {[%emt 0:0:49]} O-O {[%emt 0:1:6]} 12. Na3 {[%emt 0:2:52]} Be6 {[%emt 0:9:46]} 13. Nc4 {[%emt 0:8:43]} Ba7 {[%emt 0:1:33]} 14. Ng5 {[%emt 0:6:37]} Bd7 {[%emt 0:11:28]} 15. Qg3 {[%emt 0:8:25]} Qf6 {[%emt 0:3:54]} 16. b5 {[%emt 0:6:14]} Nce5 {[%emt 0:3:23]} 17. b6 {[%emt 0:7:40]} Nxc4 {[%emt 0:0:45]} 18. bxa7 {[%emt 0:0:37]} Na5 {[%emt 0:1:36]} 19. Bd5 {[%emt 0:4:13]} h6 $1 {[%emt 0:2:40]} 20. Nf3 {[%emt 0:9:31]} Be6 {[%emt 0:2:20]} 21. Bxe6 {[%emt 0:2:22]} Qxe6 {[%emt 0:4:27]} (21... fxe6 $17 22. Nd4 e5 (22... Rxa7 23. Rb1 $17 ))22. Re1 {[%emt 0:0:14]} c5 {[%emt 0:4:31]} (22... Rxa7 {simplifies} 23. e5 dxe5 24. Nxe5 b6 )23. h4 {[%emt 0:3:41]} Ne5 {[%emt 0:3:18]} 24. Nxe5 {[%emt 0:1:3]} dxe5 {[%emt 0:0:2]} 25. Be3 {[%emt 0:1:6]} (25. Rd1 $11 {keeps the balance.} )b6 $17 {[%emt 0:0:21]} (25... Rxa7 $2 {too greedy.} 26. Bxc5 Raa8 27. Bxf8 Rxf8 28. Rab1 $18 )26. Rad1 {[%emt 0:0:27]} Nc4 {[%emt 0:1:35]} 27. Bc1 {[%emt 0:2:10]} Rxa7 {[%emt 0:0:41]} 28. Rd5 {[%emt 0:0:29]} Rc8 {[%emt 0:2:40]} 29. Qd3 {[%emt 0:0:57]} b5 {[%emt 0:0:5]} 30. axb5 {[%emt 0:0:11]} axb5 {[%emt 0:0:3]} 31. Be3 {[%emt 0:0:56]} Qe7 {[%emt 0:0:29]} 32. Rb1 {[%emt 0:0:44]} Rb7 {[%emt 0:1:47]} (32... Qxh4 {feels hotter.} 33. Rxc5 Rxc5 34. Bxc5 Ra2 )33. h5 {[%emt 0:0:56]} Nxe3 {[%emt 0:0:45]} 34. Qxe3 {[%emt 0:0:1]} b4 {[%emt 0:0:8]} 35. cxb4 {[%emt 0:1:9]} (35. g3 $142 )cxb4 $17 {[%emt 0:0:5]} 36. Qg3 {[%emt 0:0:17]} (36. g3 $17 {keeps fighting.} )Rc5 {[%emt 0:0:34]} (36... Rc3 $19 37. Rd3 Rbc7 )37. Rd3 {[%emt 0:0:14]} Qg5 {[%emt 0:0:36]} 38. Qf3 {[%emt 0:1:1]} Rc1+ {[%emt 0:1:19]} 39. Rxc1 {[%emt 0:0:4]} Qxc1+ {[%emt 0:0:1]} 40. Rd1 {[%emt 0:0:55]} Qf4 {[%emt 0:1:1]} 41. Qd3 {[%emt 0:6:55]} Kh7 {[%emt 0:21:32]} 42. Rb1 {[%emt 0:18:50]} (42. Rf1 $17 )Rb6 {[%emt 0:13:16]} (42... Rc7 $19 {Hoping for ...Rc3.} 43. g3 Qg4 )43. Qc4 {[%emt 0:5:14]} Qd2 {[%emt 0:8:5]} ({Much less strong is} 43... Rf6 44. Qe2 )44. Qxf7 {[%emt 0:10:49]} (44. f3 $17 )Rf6 $19 {[%emt 0:0:1]} 45. Qa7 {[%emt 0:0:9]} b3 $1 {[%emt 0:0:6]} 46. Qe3 {[%emt 0:0:26]} (46. Qc5 $142 )Qxe3 $19 {[%emt 0:0:8]} 47. fxe3 {[%emt 0:0:8]} Rb6 {[%emt 0:0:18]} 48. Kf2 {[%emt 0:5:36]} Kg8 {[%emt 0:4:41]} (48... b2 $142 {...g6 is the strong threat.} 49. Ke2 g6 50. hxg6+ Kxg6 (50... Rxg6 $2 51. g3 $19 ))49. Ke2 {[%emt 0:0:11]} Kf7 {[%emt 0:2:4]} ({Black should play} 49... Rb4 {[%cal Ob3b2] And now ...b2! would win.} 50. Kd3 Kf7 )50. Kd2 $17 {[%emt 0:1:7]} Kf6 {[%emt 0:0:38]} 51. Kc3 $2 {[%emt 0:4:29][%mdl 8192]} (51. Rf1+ $17 Kg5 52. Rf5+ Kh4 53. Kc1 )Kg5 {[%emt 0:0:28]} 52. Kc4 {[%emt 0:0:51]} Kxh5 {[%emt 0:1:49]} 53. Kd5 $2 {[%emt 0:0:5]} (53. Rb2 Kg5 54. Kc5 )b2 $19 {[%emt 0:1:40]} 54. Kxe5 {[%emt 0:0:6]} Kg5 {[%emt 0:0:47]} 55. Kd4 {[%emt 0:1:46]} Kf6 {[%emt 0:0:8]} 56. Kd5 {[%emt 0:0:33]} h5 {[%emt 0:2:29]} 57. Rf1+ {[%emt 0:0:30]} Ke7 {[%emt 0:0:12]} 58. Rb1 {[%emt 0:0:5]} g5 {[%emt 0:1:4]} 59. e5 {[%emt 0:0:7]} h4 {[%emt 0:0:15]} 60. Kc5 {[%emt 0:0:35]} Rb8 {[%emt 0:0:11]} 61. Kd5 {[%emt 0:15:10]} g4 {[%emt 0:15:19]} 62. Ke4 {[%emt 0:0:28]} Ke6 {[%emt 0:0:38]} 63. Kf4 {[%emt 0:0:19]} Rb4+ {[%emt 0:0:25]} 64. e4 {[%emt 0:0:20]} h3 {[%emt 0:0:13]} 0-1

[Event "57th Biel Festival MTO 2024"]
[White "Gavrilescu,David"]
[Black "Sukandar,Irine Kharisma"]
[Site "Biel"]
[Round "2.10"]
[Annotator "TA"]
[Result "0-1"]
[Date "2024.07.16"]
[WhiteElo "2538"]
[BlackElo "2338"]
[PlyCount "98"]
[TimeControl "60"]

{[%evp 13,98,38,36,39,39,34,39,38,29,23,20,18,12,19,43,10,29,34,37,23,57,66,73,24,43,49,71,58,52,59,56,88,91,71,66,59,93,0,0,0,72,65,75,-95,-99,-85,-101,-81,-101,-131,-136,-131,-127,-126,-123,-116,-127,-134,-118,-126,-130,-553,-547,-516,-302,-243,0,0,0,0,0,0,0,0,0,0,0,-143,-134,-794,-717,-1970,-602,-29990,-29991,-29991,-29985]} 1. e4 {[%emt 0:0:25]} e5 {[%emt 0:0:39]} 2. Nf3 {[%emt 0:0:26]} Nc6 {[%emt 0:0:32]} 3. Bc4 {[%emt 0:0:40]} Nf6 {[%emt 0:0:51]} 4. d3 {[%emt 0:0:31]} Be7 {[%emt 0:0:48]} 5. O-O {[%emt 0:0:59]} O-O {[%emt 0:0:49]} 6. Re1 {[%emt 0:0:54]} d6 {[%emt 0:0:53]} 7. a4 {[%emt 0:0:47]} Na5 {[%emt 0:0:19]} 8. Ba2 {[%emt 0:0:10]} c5 {[%emt 0:0:8]} 9. c3 {[%emt 0:0:52]} Nc6 {[%emt 0:2:19]} 10. Na3 {[%emt 0:1:39] White is slightly better.} Be6 {[%emt 0:1:22]} 11. Bg5 {[%emt 0:11:59]} Bxa2 {[%emt 0:8:42]} 12. Rxa2 {[%emt 0:1:53]} Nh5 {[%emt 0:1:0]} 13. Bd2 {[%emt 0:3:4]} Qd7 {[%emt 0:1:51]} 14. Nc4 {[%emt 0:3:54]} f5 {[%emt 0:2:15]} 15. Ra1 {[%emt 0:12:32]} Rae8 {[%emt 0:13:0]} 16. b4 {[%emt 0:9:1]} cxb4 {[%emt 0:6:36]} 17. cxb4 {[%emt 0:0:35]} Qe6 {[%emt 0:2:9]} 18. Rc1 {[%emt 0:12:33]} ({White should try} 18. Ne3 $16 )fxe4 {[%emt 0:4:46]} 19. dxe4 {[%emt 0:2:38]} Qg6 $1 {[%emt 0:0:17]} 20. b5 {[%emt 0:2:48]} Nd8 {[%emt 0:5:20]} 21. Be3 {[%emt 0:5:25]} Ne6 {[%emt 0:3:24] [#]} 22. Nfxe5 $1 {[%emt 0:7:19]} dxe5 {[%emt 0:0:7]} 23. Nxe5 {[%emt 0:0:5]} (23. Bxa7 $2 Nhf4 24. g3 Rd8 $19 )Qf6 {[%emt 0:19:32]} 24. Nd7 {[%emt 0:0:47]} (24. Qxh5 $6 g6 25. Nxg6 hxg6 $11 )Qg6 {[%emt 0:0:31][%cal Oh5f4]} 25. Ne5 {[%emt 0:1:32]} Qf6 {[%emt 0:0:13]} 26. Nd7 {[%emt 0:0:7]} Qg6 {[%emt 0:0:26][%cal Oh5f4]} 27. Nxf8 {[%emt 0:0:9]} Rxf8 {[%emt 0:0:28]} 28. Qd7 $2 {[%emt 0:2:24]} (28. Bxa7 $6 Nhf4 29. g3 Rd8 $11 )(28. Kh1 $16 )Bb4 $17 {[%emt 0:3:44]} 29. Qxb7 {[%emt 0:12:49][%cal Og1h1]} Bxe1 $40 {[%emt 0:0:15][%mdl 128] Black has strong attack.} 30. Rxe1 {[%emt 0:0:6][%cal Og1h1]} Nhf4 {[%emt 0:0:22][%csl Gf4][%cal Rg6g2]} 31. e5 {[%emt 0:4:20]} Nh3+ {[%emt 0:2:10] A dynamic duo of knights.} 32. Kh1 {[%emt 0:0:5]} Nxf2+ {[%emt 0:0:56]} 33. Bxf2 {[%emt 0:0:5]} Rxf2 {[%emt 0:0:5]} 34. Qa8+ {[%emt 0:0:22]} Rf8 $1 {[%emt 0:0:56]} 35. Qxa7 {[%emt 0:0:6]} Nf4 {[%emt 0:7:29]} 36. Qg1 {[%emt 0:3:40]} Qc2 $1 {[%emt 0:4:33][%cal Of4d3] Threatens to win with ...Nd3!} 37. Ra1 $2 {[%emt 0:1:11][%mdl 8192]} (37. h3 $17 {is more resistant.} )Nd3 $19 {[%emt 0:1:58]} 38. Qd4 {[%emt 0:2:41]} Qe2 {[%emt 0:4:8]} 39. h3 {[%emt 0:4:1]} Nf4 $2 {[%emt 0:3:40]} (39... Nxe5 40. b6 $14 )(39... Qxe5 40. Qxe5 Nxe5 41. a5 $16 )(39... Ne1 $19 {[%csl Ge1][%cal Re2g2]} 40. Qd5+ Kh8 )40. Rg1 $11 {[%emt 0:1:59]} Qa2 {[%emt 0:8:35] aiming for ...Ne2.} 41. Kh2 {[%emt 0:12:23]} ({Much weaker is} 41. b6 Ne2 42. Qb4 (42. Ra1 $2 Rf1+ 43. Kh2 Qxa1 $19 )Nxg1 $17 )Ne2 {[%emt 0:5:57]} 42. Ra1 {[%emt 0:1:9]} Qb3 {[%emt 0:5:28]} 43. Qe4 $1 {[%emt 0:6:48]} Qg3+ {[%emt 0:8:52]} 44. Kh1 {[%emt 0:0:18]} Qf2 {[%emt 0:0:29] Active counter play!} (44... Qc3 $5 45. Qd5+ $8 Kh8 $11 )45. Kh2 {[%emt 0:5:47] [#]} (45. Qc4+ $11 Kh8 46. e6 )Kh8 $1 $17 {[%emt 0:5:31] And now ...Qg3+ would win.} 46. Qb4 $2 {[%emt 0:12:50][%mdl 8192] [#]} (46. Qc4 $17 )h5 $1 $19 {[%emt 0:4:7] ( -> ...Rf3)} ({Not} 46... Qg3+ 47. Kh1 Rc8 48. e6 $11 )47. Qe1 {[%emt 0:6:23]} Qf4+ {[%emt 0:0:18]} (47... Qe3 $142 48. Ra3 Qxa3 49. Qxe2 Qxa4 50. Qxh5+ Kg8 )48. g3 {[%emt 0:0:3]} Qe3 {[%emt 0:1:50]} 49. Kg2 {[%emt 0:0:52]} Rf3 {[%emt 0:0:22] Weighted Error Value: White=0.74/Black=0.20 (precise) .  Loses game:     	White=2     	---        Missed win:     	---       	Black=1      Mistake:       	White=3     	---        Inaccurate:     	White=2     	Black=2      OK:         	White=12    	Black=16     Best:        	White=3     	Black=3      Strong:       	White=1     	Black=5} 0-1

[Event "57th Biel Festival MTO 2024"]
[White "Ayush Sharma"]
[Black "Kobo,Ori"]
[Site "Biel"]
[Round "2.11"]
[Annotator "TA"]
[Result "0-1"]
[Date "2024.07.16"]
[WhiteElo "2325"]
[BlackElo "2529"]
[PlyCount "70"]
[TimeControl "60"]

{[%evp 22,70,36,0,11,23,0,0,0,25,0,0,0,-14,-4,-34,-10,0,0,0,0,6,18,27,56,-21,-19,-16,-6,-9,-12,-34,0,0,-6,-5,0,-83,0,0,-8,-13,-8,-23,-16,-758,-744,-743,-734,-756,-735]} 1. e4 {[%emt 0:0:3]} e5 {[%emt 0:0:20]} 2. Nf3 {[%emt 0:0:6]} Nc6 {[%emt 0:0:12]} 3. Bb5 {[%emt 0:0:4]} a6 {[%emt 0:0:15]} 4. Ba4 {[%emt 0:0:16]} Nf6 {[%emt 0:0:21]} 5. O-O {[%emt 0:0:11]} Be7 {[%emt 0:0:18]} 6. Re1 {[%emt 0:0:11]} b5 {[%emt 0:0:9]} 7. Bb3 {[%emt 0:0:2]} d6 {[%emt 0:0:26]} 8. c3 {[%emt 0:0:5][%cal Bc2c3,Bc3c4][%mdl 32]} O-O {[%emt 0:0:15]} 9. h3 {[%emt 0:0:4]} Nb8 {[%emt 0:0:24][%cal Bc6b8,Bb8d7,Bd7e5][%mdl 32]} 10. d4 {[%emt 0:0:2]} Nbd7 {[%emt 0:0:15]} 11. c4 {[%emt 0:0:1]} c6 {[%emt 0:0:20]} 12. a3 {[%emt 0:1:47]} exd4 {[%emt 0:0:10]} (12... bxc4 $5 13. Bxc4 d5 $14 )13. Nxd4 {[%emt 0:0:19]} Ne5 {[%emt 0:0:11]} 14. cxb5 {[%emt 0:11:51]} axb5 {[%emt 0:0:12] Die Stellung ist ausgeglichen.} 15. Be3 {[%emt 0:12:28]} Bd7 {[%emt 0:16:38]} 16. Nc3 {[%emt 0:4:14]} Re8 {[%emt 0:15:34]} 17. Qe2 {[%emt 0:10:42]} Bf8 {[%emt 0:5:4]} 18. f4 {[%emt 0:11:17] [#]} Nc4 {[%emt 0:3:58]} 19. Bxc4 {[%emt 0:0:8]} bxc4 {[%emt 0:0:8]} 20. Qxc4 {[%emt 0:0:10]} Nxe4 {[%emt 0:16:20]} 21. Nxc6 {[%emt 0:0:44]} Qc8 {[%emt 0:10:14]} 22. Nxe4 {[%emt 0:8:48][%cal Oe4g5] Schwarz muss nun Ng5! beachten.} Bxc6 {[%emt 0:0:11]} 23. Ng5 {[%emt 0:19:52]} ({Vorzuziehen ist} 23. Ng3 $1 $14 )Qb7 $1 $11 {[%emt 0:0:19][%csl LRb2,LRg2][%cal Oh7h6][%mdl 1024] Schwarz hat Kompensation.} 24. Qc2 {[%emt 0:5:19][%csl Gg5][%cal Rc2h7]} g6 {[%emt 0:0:17] Und jetzt ...h6 wäre schön.} 25. Rac1 $132 {[%emt 0:4:47][%mdl 2048] Weiss hält sich nicht zurück} Bd5 {[%emt 0:14:29] Droht ...h6 und aus. Ein starkes Läuferpaar.} 26. Qf2 $1 {[%emt 0:3:15]} h6 {[%emt 0:3:54]} 27. Nf3 {[%emt 0:0:10]} Bxf3 {[%emt 0:0:42]} 28. gxf3 {[%emt 0:4:48]} Bg7 {[%emt 0:0:26]} 29. Re2 {[%emt 0:2:29]} (29. Rc2 $11 )Qd7 {[%emt 0:4:47] Schwarz steht deutlich aktiver.} ({Günstiger ist} 29... Re7 $17 {...Rae8 wäre nun fies.} 30. Rce1 Rae8 )30. Kg2 {[%emt 0:0:57]} Ra5 {[%emt 0:0:40]} 31. Rd2 {[%emt 0:3:16]} Rh5 {[%emt 0:7:38]} 32. Rh1 {[%emt 0:0:25]} Bf6 {[%emt 0:2:7]} 33. Bc5 $2 {[%emt 0:3:48][%mdl 8192]} Bh4 $19 {[%emt 0:1:29] Schwarz steht klar auf Gewinn.} 34. Qd4 {[%emt 0:1:55]} Rxc5 {[%emt 0:2:4]} 35. Qxc5 {[%emt 0:0:26] [#]} Re2+ $3 {[%emt 0:0:7][%mdl 512] Gewichteter Fehlerwert: Weiß=0.39/Schwarz=0.11 (sehr präzise) .  Verlustzug:     	Weiß=1     	---        Fehler:       	Weiß=2     	Schwarz=1     Ungenau:       	Weiß=1     	Schwarz=2     OK:         	Weiß=7     	Schwarz=9     Bester:       	Weiß=3     	Schwarz=1     Stark:        	Weiß=1     	Schwarz=1} 0-1

[Event "57th Biel Festival MTO 2024"]
[White "Koustav Chatterjee"]
[Black "Haimovich,Tal"]
[Site "Biel"]
[Round "2.12"]
[Annotator "RC"]
[Result "1-0"]
[Date "2024.07.16"]
[WhiteElo "2525"]
[BlackElo "2330"]
[PlyCount "103"]
[TimeControl "60"]

1. d4 {[%emt 0:0:5]} Nf6 {[%emt 0:0:10]} 2. c4 {[%emt 0:0:4]} e6 {[%emt 0:0:6]} 3. Nc3 {[%emt 0:0:5]} Bb4 {[%emt 0:0:13]} 4. e3 {[%emt 0:0:6]} O-O {[%emt 0:0:23]} 5. Bd3 {[%emt 0:0:4]} d5 {[%emt 0:0:45]} 6. a3 {[%emt 0:0:6]} Bxc3+ {[%emt 0:3:15]} 7. bxc3 {[%emt 0:0:6]} b6 {[%emt 0:4:52]} 8. cxd5 {[%emt 0:2:8]} exd5 {[%emt 0:0:42]} 9. Ne2 {[%emt 0:0:44]} Re8 {[%emt 0:9:42]} 10. O-O {[%emt 0:1:27]} Ba6 {[%emt 0:9:18]} 11. Bxa6 {[%emt 0:12:7]} Nxa6 {[%emt 0:0:3]} 12. Qd3 {[%emt 0:0:5]} Nb8 {[%emt 0:0:18]} 13. Bb2 {[%emt 0:1:21]} Nbd7 {[%emt 0:7:13]} 14. f3 {[%emt 0:12:32]} Qe7 {[%emt 0:4:7]} 15. Kf2 {[%emt 0:1:38]} c5 {[%emt 0:0:45]} 16. Ng3 {[%emt 0:0:23]} Nf8 {[%emt 0:6:39]} 17. Rae1 {[%emt 0:2:2]} Ne6 {[%emt 0:8:30]} 18. e4 {[%emt 0:11:22]} c4 {[%emt 0:2:43]} 19. Qd2 {[%emt 0:26:12]} dxe4 {[%emt 0:1:13]} 20. fxe4 {[%emt 0:0:5]} Ng4+ {[%emt 0:1:7]} 21. Kg1 {[%emt 0:0:6]} Qh4 {[%emt 0:1:40]} 22. h3 {[%emt 0:0:5]} Qxg3 {[%emt 0:0:5]} 23. hxg4 {[%emt 0:0:3]} Qxg4 {[%emt 0:0:36]} 24. e5 {[%emt 0:5:28]} Rad8 {[%emt 0:4:18]} 25. Re3 {[%emt 0:2:38]} Rd7 {[%emt 0:6:55]} 26. Qf2 {[%emt 0:4:22]} Nf8 {[%emt 0:9:44]} 27. a4 {[%emt 0:5:25]} Qe6 {[%emt 0:1:43]} 28. Ba3 {[%emt 0:0:23]} Ng6 {[%emt 0:1:11]} 29. Rf3 {[%emt 0:3:14]} Nh8 {[%emt 0:3:48]} 30. Qh4 {[%emt 0:2:13]} Qc6 {[%emt 0:2:20]} 31. Rh3 {[%emt 0:0:25]} h6 {[%emt 0:6:0]} 32. Bd6 {[%emt 0:8:13]} Re6 {[%emt 0:3:14]} 33. Rg3 {[%emt 0:0:31]} Ng6 {[%emt 0:6:35]} 34. Qg4 {[%emt 0:0:5]} Qd5 {[%emt 0:1:54]} 35. Rb1 {[%emt 0:0:42]} h5 {[%emt 0:2:2]} 36. Qxh5 {[%emt 0:6:7]} Rdxd6 {[%emt 0:0:58]} 37. Rb5 {[%emt 0:0:4]} Qe4 {[%emt 0:0:12]} 38. exd6 {[%emt 0:0:4]} Nf4 {[%emt 0:0:15]} 39. Qg5 {[%emt 0:1:20]} Ne2+ {[%emt 0:2:7]} 40. Kh2 {[%emt 0:0:8]} Nxg3 {[%emt 0:1:19]} 41. d7 {[%emt 0:50:9]} Rh6+ {[%emt 0:12:27]} 42. Qxh6 {[%emt 0:0:0]} gxh6 {[%emt 0:0:41]} 43. d8=Q+ {[%emt 0:0:0]} Kg7 {[%emt 0:0:8]} 44. Kxg3 {[%emt 0:0:0]} Qe3+ {[%emt 0:3:8]} 45. Kh2 {[%emt 0:0:0]} Qf4+ {[%emt 0:2:8]} 46. Kh3 {[%emt 0:0:0]} Qe3+ {[%emt 0:0:36]} 47. g3 {[%emt 0:0:0]} Qe6+ {[%emt 0:2:50]} 48. g4 {[%emt 0:0:0]} Qe3+ {[%emt 0:0:28]} 49. Kh4 {[%emt 0:0:0]} Qf2+ {[%emt 0:0:28]} 50. Kh5 {[%emt 0:0:0]} Qh2+ {[%emt 0:13:10]} 51. Qh4 {[%emt 0:0:0]} Qd6 {[%emt 0:0:3]} 52. Qf2 {[%emt 0:0:0]} 1-0

[Event "57th Biel Festival MTO 2024"]
[White "Ritviz,Parab"]
[Black "Xiao,Tong"]
[Site "Biel"]
[Round "2.13"]
[Annotator "TA"]
[Result "1/2-1/2"]
[Date "2024.07.16"]
[WhiteElo "2334"]
[BlackElo "2518"]
[PlyCount "91"]
[TimeControl "60"]

{[%evp 9,91,2,3,8,15,6,14,0,0,5,2,0,18,7,35,6,10,7,3,6,17,16,21,25,62,46,36,34,32,41,42,17,27,10,46,39,41,41,91,81,85,57,70,26,52,45,64,0,0,0,0,-52,0,0,-22,-16,0,0,0,-13,0,-1,0,-16,-6,-14,0,0,0,0,0,0,0,0,0,0,0,0,0,0,0,0,0,0]} 1. e4 {[%emt 0:0:4]} c5 {[%emt 0:0:9]} 2. Nf3 {[%emt 0:0:8]} d6 {[%emt 0:0:24]} 3. Bb5+ {[%emt 0:0:19]} Bd7 {[%emt 0:0:28]} 4. c4 {[%emt 0:1:7]} Nc6 {[%emt 0:0:38]} 5. Nc3 {[%emt 0:5:8]} e5 {[%emt 0:0:43]} 6. d3 {[%emt 0:8:32]} Nf6 {[%emt 0:0:15]} 7. O-O {[%emt 0:4:11]} Be7 {[%emt 0:0:6][%cal Bf8e7,Be7f6,Bf6d4][%mdl 32]} 8. Ne1 {[%emt 0:12:7][%cal Bf3e1,Be1c2,Bc2e3][%mdl 32]} O-O {[%emt 0:5:47]} 9. Nc2 {[%emt 0:3:38]} Ne8 {[%emt 0:4:24]} 10. f4 {[%emt 0:6:16]} exf4 {[%emt 0:14:7]} 11. Bxf4 {[%emt 0:4:36]} Bf6 {[%emt 0:2:2]} 12. Ne3 {[%emt 0:14:12]} Bd4 {[%emt 0:13:16] [#] Und ...g5 würde nun gewinnen.} 13. Qd2 {[%emt 0:3:7]} Qa5 {[%emt 0:4:50]} 14. Kh1 {[%emt 0:4:48]} a6 {[%emt 0:0:26]} 15. Bxc6 {[%emt 0:0:7]} bxc6 {[%emt 0:0:9]} 16. Rac1 {[%emt 0:9:41]} Qd8 {[%emt 0:10:15]} 17. Ne2 {[%emt 0:14:2][%cal Bc3e2,Be2g3,Bg3e4,Be4c5][%mdl 32]} Bf6 {[%emt 0:11:14]} 18. Nf5 {[%emt 0:6:39]} Bxf5 {[%emt 0:10:34]} 19. exf5 {[%emt 0:0:3]} a5 {[%emt 0:0:13]} 20. Ng3 {[%emt 0:1:52]} Bd4 {[%emt 0:2:11]} 21. Ne4 {[%emt 0:0:45]} d5 {[%emt 0:1:17]} 22. cxd5 {[%emt 0:1:52]} Qxd5 {[%emt 0:0:56]} 23. Be3 {[%emt 0:1:0]} Rd8 {[%emt 0:7:33]} (23... Nf6 $14 )24. Bxd4 $16 {[%emt 0:1:29]} (24. Nxc5 Bxe3 25. Qxe3 Qxa2 $16 )Qxd4 {[%emt 0:0:2]} 25. Nxc5 {[%emt 0:1:32] Weiß steht aktiver.} (25. Rxc5 $2 {geht unter.} Qxe4 (25... Qxd3 26. Qxd3 Rxd3 27. Rxc6 $14 )26. dxe4 Rxd2 $19 )Nf6 {[%emt 0:2:57]} 26. b3 {[%emt 0:2:9][%cal Oc5b7]} (26. Nb3 {vereinfacht} Qxd3 27. Qxd3 Rxd3 28. Nxa5 Ra8 29. b4 )Rd5 {[%emt 0:2:2]} 27. Rc4 {[%emt 0:2:42]} (27. Qxa5 $2 Ng4 28. h3 Nf2+ 29. Rxf2 Qxf2 $19 )Qe5 {[%emt 0:0:5]} 28. Qxa5 {[%emt 0:0:5]} (28. d4 $1 $14 Qe7 29. Rf3 (29. Qxa5 Ng4 $11 ))Rxd3 $11 {[%emt 0:0:44] Zielt auf ...Re8 ab.} 29. Qe1 {[%emt 0:2:7]} Re3 {[%emt 0:0:2]} 30. Qh4 {[%emt 0:0:20]} ({Vorzuziehen ist} 30. Qa1 $11 )Re8 {[%emt 0:1:9][%mdl 1024] Schwarz hat Kompensation.} 31. Rcc1 {[%emt 0:0:46][%cal Bc4c1,Bc1b1,Bb1e1][%mdl 32] Lässt Re1 nicht zu. Die Stellung ist ausgeglichen.} Re2 {[%emt 0:0:21]} 32. a4 {[%emt 0:0:33]} Nd5 {[%emt 0:0:36] Droht stark ...Ne3.} (32... Qd5 {ist interessant.} 33. Qg3 R8e3 34. Qb8+ Re8 )33. Qg3 {[%emt 0:0:27]} Qd4 {[%emt 0:0:44] Und jetzt ...Ne3 wäre schön.} 34. Qd3 {[%emt 0:0:34]} Qb2 {[%emt 0:0:29]} 35. Rb1 {[%emt 0:0:25]} Qe5 {[%emt 0:0:11]} 36. Qg3 {[%emt 0:0:31]} Qd4 {[%emt 0:0:6]} (36... Ne3 {vereinfacht} 37. Qxe5 Rxe5 38. Nd3 Nxf1 39. Nxe5 Nd2 )37. Qd6 {[%emt 0:0:27] [#]} Rxg2 $1 {[%emt 0:0:58][%cal Oh7h6] Weiss muss nun ...h6! beachten.} 38. Rbe1 {[%emt 0:0:1]} Ra8 {[%emt 0:1:32]} 39. Qxc6 {[%emt 0:0:30][%cal Rc6a8]} (39. Kxg2 $2 {verliert.} Ne3+ 40. Rxe3 Qxd6 $19 )Rxh2+ $1 {[%emt 0:0:14]} 40. Kxh2 {[%emt 0:0:4][%cal Rc6a8]} Qh4+ {[%emt 0:1:40]} 41. Kg2 {[%emt 0:50:27][%cal Bh2g2,Bg2f2,Bf2g3,Bg3f3][%mdl 32]} Qg4+ {[%emt 0:50:31]} 42. Kf2 {[%emt 0:0:0][%cal Rc6a8]} Qxf5+ {[%emt 0:0:0]} 43. Kg3 {[%emt 0:0:0]} Qg5+ {[%emt 0:0:0]} 44. Kf3 {[%emt 0:0:0]} Qf5+ {[%emt 0:0:0]} 45. Kg3 {[%emt 0:0:0]} Qg5+ {[%emt 0:0:0]} 46. Kf3 {[%emt 0:0:0] Gewichteter Fehlerwert: Weiß=0.09 (makellos) /Schwarz=0.09 (makellos) .  Fehler:       	Weiß=2     	Schwarz=1     Ungenau:       	Weiß=3     	Schwarz=4     OK:         	Weiß=7     	Schwarz=15    Bester:       	Weiß=2     	Schwarz=4     Stark:        	---       	Schwarz=1} 1/2-1/2